fUST/lending_fUST_20250723
["ID","MTS","AMOUNT","RATE_DAILY","PERIOD"]
[374326667,1753275053147,-2504.05,0.0002277,6]
[374326669,1753275053156,-800.0,0.00022773,2]
[374326671,1753275053165,-800.0,0.00022783,2]
[374326673,1753275053175,-310.0,0.00022822,8]
[374326675,1753275053185,-583.49864386,0.00022829,2]
[374326677,1753275053195,-160.0,0.00022857,3]
[374326679,1753275053204,-724.39207068,0.00022868,2]
[374326681,1753275053213,-2504.076775,0.0002287,6]
[374326683,1753275053222,-800.0,0.00022895,2]
[374326685,1753275053232,-700.0,0.00022908,2]
[374326687,1753275053241,-704.29401755,0.00022917,2]
[374326689,1753275053251,-476.696448,0.00022919,10]
[374326691,1753275053260,-12622.36869388,0.00022919,10]
[374326693,1753275053269,-800.0,0.00022924,2]
[374326695,1753275053279,-384.89464143,0.00022925,2]
[374326697,1753275053288,-106212.85634857,0.00022928,2]
[374326699,1753275053297,-151.0,0.00022928,7]
[374326701,1753275053306,-168.48543,0.00022928,7]
[374326703,1753275053316,-168.48543,0.00022928,7]
[374326705,1753275053326,-159.9205653,0.00022929,2]
[374326707,1753275053335,-178.2325116,0.00022929,2]
[374326709,1753275053344,-159.9205653,0.00022929,2]
[374326711,1753275053353,-178.2325116,0.00022929,2]
[374326713,1753275053362,-577.5430988,0.00022929,2]
[374326715,1753275053371,-178.2325116,0.00022929,2]
[374326717,1753275053380,-356.4650232,0.00022929,2]
[374326719,1753275053389,-1153.7481044,0.00022929,2]
[374326721,1753275053398,-178.2325116,0.00022929,2]
[374326723,1753275053407,-178.2325116,0.00022929,2]
[374326725,1753275053416,-178.2325116,0.00022929,2]
[374326727,1753275053429,-161838.46099395,0.00022929,2]
[374326751,1753275053655,-55322.3917225,0.00022929,2]
[374326753,1753275053665,-156.275966,0.00022929,7]
[374326755,1753275053675,-156.275966,0.00022929,7]
[374326757,1753275053684,-151.0,0.00022929,7]
[374326759,1753275053693,-151.0,0.00022929,7]
[374326761,1753275053705,-151.0,0.00022929,7]
[374326763,1753275053714,-151.0,0.00022929,7]
[374326765,1753275053723,-151.0,0.00022929,7]
[374326767,1753275053732,-151.0,0.00022929,7]
[374326769,1753275053742,-151.0,0.00022929,7]
[374326771,1753275053751,-188.538818,0.00022929,7]
[374326773,1753275053760,-188.538818,0.00022929,7]
[374326775,1753275053769,-151.0,0.00022929,7]
[374326777,1753275053779,-234.9174,0.00022929,7]
[374326779,1753275053788,-151.0,0.00022929,7]
[374326781,1753275053798,-151.0,0.00022929,7]
[374326783,1753275053807,-151.0,0.00022929,7]
[374326786,1753275053817,-151.0,0.00022929,7]
[374326788,1753275053827,-151.0,0.00022929,7]
[374326790,1753275053836,-151.0,0.00022929,7]
[374326792,1753275053845,-151.0,0.00022929,7]
[374326793,1753275053856,-175.014685,0.00022929,7]
[374326796,1753275053867,-175.014685,0.00022929,7]
[374326797,1753275053878,-151.0,0.00022929,2]
[374326800,1753275053888,-151.0,0.00022929,2]
[374326802,1753275053898,-22414.5320422,0.00022929,2]
[374326804,1753275053910,-383.193019,0.00022929,7]
[374326806,1753275053920,-383.193019,0.00022929,7]
[374326808,1753275053930,-405.712595,0.00022929,7]
[374326810,1753275053941,-405.712595,0.00022929,7]
[374326812,1753275053952,-151.0,0.00022929,7]
[374326814,1753275053962,-325.310964,0.00022929,7]
[374326816,1753275053971,-325.310964,0.00022929,7]
[374326818,1753275053980,-220.109416,0.00022929,7]
[374326820,1753275053989,-151.141522,0.00022929,7]
[374326822,1753275053999,-220.109416,0.00022929,7]
[374326824,1753275054008,-151.141522,0.00022929,7]
[374326826,1753275054017,-151.0,0.00022929,7]
[374326828,1753275054027,-568.35864,0.00022929,7]
[374326830,1753275054036,-165.955037,0.00022929,7]
[374326832,1753275054045,-568.35864,0.00022929,7]
[374326834,1753275054055,-165.955037,0.00022929,7]
[374326836,1753275054064,-204.000093,0.00022929,7]
[374326838,1753275054073,-204.000093,0.00022929,7]
[374326840,1753275054083,-311.005301,0.00022929,7]
[374326842,1753275054092,-311.005301,0.00022929,7]
[374326843,1753275054101,-151.0,0.00022929,7]
[374326844,1753275054110,-151.0,0.00022929,7]
[374326845,1753275054119,-3113.147363,0.00022929,7]
[374326846,1753275054128,-151.0,0.00022929,7]
[374326847,1753275054137,-3113.147363,0.00022929,7]
[374326848,1753275054145,-151.0,0.00022929,7]
[374326849,1753275054154,-673.230329,0.00022929,7]
[374326850,1753275054163,-257.125609,0.00022929,7]
[374326851,1753275054171,-673.230329,0.00022929,7]
[374326852,1753275054180,-257.125609,0.00022929,7]
[374326853,1753275054190,-1376.606103,0.00022929,7]
[374326854,1753275054198,-1376.606103,0.00022929,7]
[374326855,1753275054207,-151.0,0.00022929,7]
[374326856,1753275054216,-153.222899,0.00022929,7]
[374326857,1753275054225,-151.0,0.00022929,7]
[374326858,1753275054234,-151.0,0.00022929,7]
[374326859,1753275054242,-151.0,0.00022929,7]
[374326860,1753275054251,-151.0,0.00022929,7]
[374326862,1753275054261,-153.353469,0.00022929,7]
[374326864,1753275054271,-151.0,0.00022929,7]
[374326866,1753275054280,-151.0,0.00022929,7]
[374326867,1753275054289,-689.53220871,0.00022929,2]
[374326869,1753275054299,-284.673206,0.00022929,7]
[374326871,1753275054308,-284.673206,0.00022929,7]
[374326873,1753275054318,-476.696448,0.0002293,7]
[374326876,1753275054327,-12622.36869388,0.0002293,7]
[374326878,1753275054337,-151.0,0.00022937,2]
[374326880,1753275054346,-25000.0,0.00022937,2]
[374326881,1753275054355,-800.0,0.00022949,2]
[374326883,1753275054364,-151.0,0.00022953,7]
[374326885,1753275054374,-1140.417002,0.00022953,7]
[374326887,1753275054384,-151.0,0.00022953,7]
[374326889,1753275054393,-1140.417002,0.00022953,7]
[374326891,1753275054406,-1058.059424,0.00022953,7]
[374326893,1753275054423,-1058.059424,0.00022953,7]
[374326895,1753275054434,-153.443753,0.00022953,7]
[374326897,1753275054444,-153.443753,0.00022953,7]
[374326900,1753275054455,-151.0,0.00022953,7]
[374326901,1753275054464,-151.0,0.00022953,7]
[374326903,1753275054474,-210.971553,0.00022953,7]
[374326905,1753275054484,-151.0,0.00022953,7]
[374326907,1753275054493,-151.0,0.00022953,7]
[374326909,1753275054502,-325.901111,0.00022953,7]
[374326911,1753275054512,-325.901111,0.00022953,7]
[374326913,1753275054522,-533.095169,0.00022953,7]
[374326915,1753275054531,-533.095169,0.00022953,7]
[374326917,1753275054541,-5984.392739,0.00022953,7]
[374326919,1753275054550,-5984.392739,0.00022953,7]
[374326921,1753275054560,-958.0,0.00022956,2]
[374326924,1753275054570,-1500.0,0.00022971,2]
[374326925,1753275054579,-1500.0,0.00022971,2]
[374326927,1753275054589,-626.88007973,0.00022971,2]
[374326929,1753275054598,-1189.96740107,0.00022971,2]
[374326931,1753275054608,-1500.0,0.00022971,2]
[374326934,1753275054619,-800.0,0.00022971,2]
[374326936,1753275054628,-472.58471755,0.00022973,2]
[374326938,1753275054638,-500.0,0.00022973,2]
[374326939,1753275054646,-500.0,0.00022973,2]
[374326941,1753275054656,-487.26539813,0.00022973,2]
[374326943,1753275054666,-336.86959081,0.00022973,2]
[374326945,1753275054675,-500.0,0.00022973,2]
[374326947,1753275054684,-500.0,0.00022973,2]
[374326950,1753275054694,-500.0,0.00022973,2]
[374326951,1753275054704,-158.27645893,0.00022973,2]
[374326954,1753275054714,-500.0,0.00022973,2]
[374326955,1753275054723,-500.0,0.00022973,2]
[374326957,1753275054732,-500.0,0.00022973,2]
[374326959,1753275054742,-500.0,0.00022973,2]
[374326961,1753275054752,-158.27900585,0.00022973,2]
[374326963,1753275054761,-550.14382085,0.00022973,2]
[374326965,1753275054770,-500.0,0.00022973,2]
[374326967,1753275054780,-500.0,0.00022973,2]
[374326969,1753275054790,-151.0,0.00022973,7]
[374326971,1753275054799,-173.346304,0.00022973,7]
[374326974,1753275054810,-151.0,0.00022973,7]
[374326976,1753275054819,-168.48543,0.00022973,7]
[374326978,1753275054829,-168.48543,0.00022973,7]
[374326979,1753275054838,-151.0,0.0002298,7]
[374326982,1753275054848,-152.11147,0.0002298,7]
[374326984,1753275054857,-9021.27119351,0.0002298,2]
[374326986,1753275054867,-800.0,0.00022981,2]
[374326988,1753275054876,-800.0,0.00022983,2]
[374326990,1753275054890,-159.9205653,0.00022984,2]
[374326992,1753275054899,-306.0,0.00022984,2]
[374326994,1753275054908,-159.9205653,0.00022984,2]
[374326996,1753275054917,-577.5430988,0.00022984,2]
[374326998,1753275054926,-306.0,0.00022984,2]
[374327000,1753275054935,-159.9205653,0.00022984,2]
[374327002,1753275054944,-577.5430988,0.00022984,2]
[374327004,1753275054954,-506.8034886,0.00022984,2]
[374327006,1753275054963,-178.2325116,0.00022984,2]
[374327008,1753275054972,-356.4650232,0.00022984,2]
[374327010,1753275054981,-178.2325116,0.00022984,2]
[374327012,1753275054990,-357.2944361,0.00022984,2]
[374327014,1753275054999,-317.6309222,0.00022984,2]
[374327016,1753275055012,-159.9205653,0.00022984,2]
[374327018,1753275055021,-159.9205653,0.00022984,2]
[374327020,1753275055030,-159.9205653,0.00022984,2]
[374327022,1753275055040,-159.9205653,0.00022984,2]
[374327024,1753275055049,-159.9205653,0.00022984,2]
[374327026,1753275055059,-159.9205653,0.00022984,2]
[374327028,1753275055068,-319.7892342,0.00022984,2]
[374327030,1753275055077,-159.9205653,0.00022984,2]
[374327032,1753275055087,-800.0,0.00022985,2]
[374327034,1753275055096,-800.0,0.00022993,2]
[374327036,1753275055105,-9810.06450645,0.00023,2]
[374327038,1753275055114,-15872.21103172,0.00023,10]
[374327040,1753275055124,-53012.00502597,0.00023,2]
[374327042,1753275055133,-151.0,0.00023,7]
[374327044,1753275055142,-151.0,0.00023,7]
[374327046,1753275055153,-151.0,0.00023,7]
[374327048,1753275055162,-151.0,0.00023,7]
[374327050,1753275055171,-641.198339,0.00023,7]
[374327052,1753275055180,-641.198339,0.00023,7]
[374327054,1753275055189,-160.0,0.00023,3]
[374327056,1753275055200,-160.0,0.00023,3]
[374327058,1753275055209,-160.0,0.00023,2]
[374327059,1753275055218,-200.0,0.00023,2]
[374327061,1753275055228,-168.0,0.00023011,2]
[374327063,1753275055238,-1574.89,0.00023013,2]
[374327066,1753275055248,-626.74,0.00023013,2]
[374327067,1753275055257,-519.84,0.00023013,2]
[374327069,1753275055267,-6550.44,0.00023013,2]
[374327071,1753275055276,-906.7,0.00023013,2]
[374327073,1753275055285,-460.0,0.00023013,2]
[374327075,1753275055295,-927.65,0.00023013,2]
[374327077,1753275055304,-460.0,0.00023013,2]
[374327079,1753275055313,-2622.86,0.00023013,2]
[374327081,1753275055325,-460.0,0.00023013,2]
[374327083,1753275055335,-1465.42,0.00023013,2]
[374327085,1753275055344,-1609.84,0.00023013,2]
[374327087,1753275055354,-460.0,0.00023013,2]
[374327090,1753275055363,-460.0,0.00023013,2]
[374327091,1753275055372,-626.63,0.00023013,2]
[374327093,1753275055382,-622.89,0.00023013,2]
[374327095,1753275055391,-2457.64,0.00023013,2]
[374327097,1753275055401,-460.0,0.00023013,2]
[374327099,1753275055410,-460.0,0.00023013,2]
[374327101,1753275055420,-1915.5,0.00023013,2]
[374327103,1753275055430,-2768.02,0.00023013,2]
[374327105,1753275055441,-479.5,0.00023013,2]
[374327107,1753275055454,-488.8,0.00023013,2]
[374327109,1753275055463,-602.87,0.00023013,2]
[374327111,1753275055473,-476.31,0.00023013,2]
[374327113,1753275055484,-3163.79,0.00023013,2]
[374327115,1753275055496,-993.41,0.00023013,2]
[374327117,1753275055506,-543.2,0.00023013,2]
[374327119,1753275055517,-460.0,0.00023013,2]
[374327121,1753275055527,-589.1,0.00023013,2]
[374327123,1753275055539,-3169.28,0.00023013,2]
[374327125,1753275055550,-1362.25,0.00023013,2]
[374327127,1753275055562,-3030.63,0.00023013,2]
[374327129,1753275055573,-478.79,0.00023013,2]
[374327131,1753275055584,-756.18,0.00023013,2]
[374327133,1753275055595,-481.84,0.00023013,2]
[374327135,1753275055606,-2142.42,0.00023013,2]
[374327137,1753275055617,-235.42530974,0.00023013,2]
[374327139,1753275055629,-272.0,0.00023014,7]
[374327141,1753275055846,-682.0,0.00023014,2]
[374327143,1753275055856,-434.0,0.00023014,2]
[374327145,1753275055866,-1022.15,0.00023024,2]
[374327147,1753275055877,-502.478894,0.00023036,2]
[374327149,1753275055887,-1500.0,0.00023036,2]
[374327151,1753275055897,-577.91857325,0.00023036,2]
[374327153,1753275055907,-1500.0,0.00023036,2]
[374327155,1753275055916,-1500.0,0.00023036,2]
[374327157,1753275055926,-1500.0,0.00023036,2]
[374327159,1753275055935,-1000.0,0.00023036,2]
[374327161,1753275055946,-1500.0,0.00023036,2]
[374327163,1753275055962,-674.76956251,0.00023036,2]
[374327165,1753275055971,-1026.56501023,0.00023036,2]
[374327167,1753275055981,-1500.0,0.00023036,2]
[374327169,1753275055990,-1500.0,0.00023036,2]
[374327171,1753275056000,-1500.0,0.00023036,2]
[374327174,1753275056009,-503.73116406,0.00023036,2]
[374327176,1753275056018,-4213.0,0.00023066,2]
[374327178,1753275056027,-161.214973,0.00023069,7]
[374327180,1753275056036,-498.55335874,0.00023076,2]
[374327182,1753275056046,-4393.6,0.00023082,6]
[374327183,1753275056055,-151.0,0.000231,7]
[374327186,1753275056064,-151.0,0.000231,7]
[374327188,1753275056074,-276.372292,0.000231,7]
[374327190,1753275056083,-151.0,0.000231,7]
[374327192,1753275056092,-151.0,0.000231,7]
[374327194,1753275056101,-151.0,0.000231,7]
[374327196,1753275056110,-151.0,0.000231,7]
[374327198,1753275056119,-151.0,0.000231,7]
[374327199,1753275056128,-151.0,0.000231,7]
[374327202,1753275056137,-151.0,0.000231,7]
[374327204,1753275056147,-151.0,0.000231,7]
[374327206,1753275056156,-175.014685,0.000231,7]
[374327219,1753275056272,-175.014685,0.000231,7]
[374327221,1753275056282,-1140.417002,0.000231,7]
[374327223,1753275056292,-151.420775,0.000231,7]
[374327225,1753275056301,-1140.417002,0.000231,7]
[374327227,1753275056311,-1058.059424,0.000231,7]
[374327229,1753275056321,-1058.059424,0.000231,7]
[374327231,1753275056331,-151.0,0.000231,2]
[374327233,1753275056341,-151.0,0.000231,2]
[374327235,1753275056350,-153.443753,0.000231,7]
[374327237,1753275056360,-153.443753,0.000231,7]
[374327239,1753275056369,-383.193019,0.000231,7]
[374327241,1753275056379,-383.193019,0.000231,7]
[374327243,1753275056388,-405.712595,0.000231,7]
[374327245,1753275056398,-405.712595,0.000231,7]
[374327248,1753275056407,-151.0,0.000231,7]
[374327250,1753275056416,-325.310964,0.000231,7]
[374327251,1753275056425,-325.310964,0.000231,7]
[374327254,1753275056434,-220.109416,0.000231,7]
[374327256,1753275056445,-151.141522,0.000231,7]
[374327258,1753275056459,-220.109416,0.000231,7]
[374327260,1753275056468,-151.141522,0.000231,7]
[374327262,1753275056478,-151.0,0.000231,7]
[374327264,1753275056487,-568.35864,0.000231,7]
[374327266,1753275056496,-165.955037,0.000231,7]
[374327268,1753275056505,-568.35864,0.000231,7]
[374327270,1753275056514,-165.955037,0.000231,7]
[374327272,1753275056523,-204.000093,0.000231,7]
[374327274,1753275056532,-204.000093,0.000231,7]
[374327275,1753275056540,-311.005301,0.000231,7]
[374327277,1753275056549,-311.005301,0.000231,7]
[374327279,1753275056558,-151.0,0.000231,7]
[374327281,1753275056567,-151.0,0.000231,7]
[374327283,1753275056576,-233.395906,0.000231,7]
[374327285,1753275056586,-153.413491,0.000231,7]
[374327287,1753275056595,-153.413491,0.000231,7]
[374327289,1753275056604,-563.438211,0.000231,7]
[374327291,1753275056616,-563.438211,0.000231,7]
[374327293,1753275056625,-189.268702,0.000231,7]
[374327295,1753275056634,-189.268702,0.000231,7]
[374327297,1753275056643,-1776.49351984,0.000231,2]
[374327299,1753275056659,-12622.36869388,0.000231,7]
[374327300,1753275056668,-462.0,0.00023105,2]
[374327302,1753275056677,-1022.15,0.00023124,2]
[374327304,1753275056686,-168.0,0.00023134,2]
[374327306,1753275056695,-168.0,0.0002317,2]
[374327308,1753275056709,-151.0,0.00023171,7]
[374327310,1753275056717,-4213.0,0.00023188,2]
[374327312,1753275056726,-6114.65132416,0.000232,2]
[374327315,1753275056740,-60024.72311103,0.000232,2]
[374327317,1753275056752,-7323.24556481,0.000232,2]
[374327319,1753275056761,-1686.05,0.000232,7]
[374327321,1753275056770,-17636.23,0.000232,7]
[374327323,1753275056780,-1022.15,0.00023224,7]
[374327325,1753275056789,-168.0,0.00023228,2]
[374327326,1753275056798,-153.0,0.00023233,2]
[374327327,1753275056810,-153.0,0.00023233,2]
[374327328,1753275056822,-153.0,0.00023233,2]
[374327329,1753275056833,-153.0,0.00023233,2]
[374327330,1753275056843,-153.0,0.00023233,2]
[374327331,1753275056853,-153.0,0.00023233,2]
[374327332,1753275056862,-462.0,0.00023233,2]
[374327333,1753275056871,-956.78343953,0.00023247,5]
[374327334,1753275056887,-461.16,0.00021643,2]
[374327335,1753275056896,-43.21656047,0.00023247,5]
[374327336,1753275056906,-563.06696552,0.00023261,3]
[374327341,1753275056992,-1189.93303448,0.00023261,3]
[374327343,1753275057002,-968.71744855,0.00023261,3]
[374327346,1753275057014,-784.28255145,0.00023261,3]
[374327348,1753275057023,-490.71744855,0.00023261,3]
[374327350,1753275057034,-1262.28255145,0.00023261,3]
[374327352,1753275057044,-1753.0,0.00023261,3]
[374327354,1753275057053,-137.29824404,0.00023261,3]
[374327377,1753275057270,-500.0,0.00018767,2]
[374327379,1753275057280,-500.0,0.00018767,2]
[374327382,1753275057290,-500.0,0.00018767,2]
[374327384,1753275057300,-508.19839004,0.00018767,2]
[374327432,1753275057755,-39.10412177,0.00018767,2]
[374327433,1753275057765,-460.0,0.00019178,2]
[374327436,1753275057775,-460.0,0.00019178,2]
[374327437,1753275057784,-86.26098234,0.00019452,2]
[374327440,1753275057796,-384.75911389,0.00019452,2]
[374327442,1753275057805,-460.0,0.0002,2]
[374327444,1753275057815,-460.0,0.00020273,2]
[374327446,1753275057824,-460.0,0.00020547,2]
[374327448,1753275057833,-460.0,0.00020821,2]
[374327450,1753275057843,-460.0,0.00021095,2]
[374327452,1753275057853,-460.0,0.00021369,2]
[374327454,1753275057874,-460.0,0.00021643,2]
[374327456,1753275057884,-461.16,0.00021917,2]
[374327458,1753275057893,-460.0,0.00021917,2]
[374327460,1753275057903,-461.16,0.00022191,2]
[374327462,1753275057914,-3942.302754,0.00022444,2]
[374327464,1753275057923,-461.16,0.00022465,2]
[374327466,1753275057933,-2559.56,0.00022465,2]
[374327468,1753275057943,-4088.1679559,0.00022499,2]
[374327470,1753275057955,-624.50070666,0.00022554,2]
[374327472,1753275057967,-1010.28825617,0.00022554,2]
[374327474,1753275057977,-461.16,0.00022739,2]
[374327476,1753275057987,-461.16,0.00023013,2]
[374327478,1753275057996,-1615.70175596,0.00023261,3]
[374327480,1753275058005,-1175.04496573,0.00023261,3]
[374327482,1753275058016,-577.95503427,0.00023261,3]
[374327484,1753275058026,-1753.0,0.00023261,3]
[374327486,1753275058035,-1753.0,0.00023261,3]
[374327488,1753275058044,-1753.0,0.00023261,3]
[374327490,1753275058054,-693.10688905,0.00023261,3]
[374327492,1753275058064,-156.275966,0.00023287,7]
[374327495,1753275058074,-156.275966,0.00023287,7]
[374327497,1753275058083,-151.0,0.00023287,7]
[374327498,1753275058093,-151.0,0.00023287,7]
[374327500,1753275058103,-151.465502,0.00023287,7]
[374327502,1753275058112,-151.0,0.00023287,7]
[374327504,1753275058122,-151.0,0.00023287,7]
[374327507,1753275058132,-151.0,0.00023287,7]
[374327509,1753275058141,-151.0,0.00023287,7]
[374327510,1753275058151,-188.538818,0.00023287,7]
[374327513,1753275058160,-188.538818,0.00023287,7]
[374327514,1753275058170,-151.0,0.00023287,7]
[374327517,1753275058179,-641.198339,0.00023287,7]
[374327519,1753275058189,-641.198339,0.00023287,7]
[374327520,1753275058198,-942.78577971,0.00023287,2]
[374327523,1753275058215,-632.10422029,0.00023287,2]
[374327525,1753275058225,-626.74,0.00023287,2]
[374327527,1753275058234,-519.84,0.00023287,2]
[374327529,1753275058243,-6550.44,0.00023287,2]
[374327531,1753275058253,-176.498652,0.00023287,7]
[374327533,1753275058262,-176.498652,0.00023287,7]
[374327535,1753275058271,-906.7,0.00023287,2]
[374327537,1753275058281,-460.0,0.00023287,2]
[374327539,1753275058291,-151.505132,0.00023287,7]
[374327541,1753275058301,-927.65,0.00023287,2]
[374327543,1753275058310,-151.0,0.00023287,7]
[374327545,1753275058319,-3113.147363,0.00023287,7]
[374327547,1753275058328,-151.0,0.00023287,7]
[374327549,1753275058337,-3113.147363,0.00023287,7]
[374327551,1753275058346,-151.0,0.00023287,7]
[374327553,1753275058356,-288.72,0.00023287,2]
[374327555,1753275058365,-2622.86,0.00023287,2]
[374327557,1753275058375,-673.230329,0.00023287,7]
[374327559,1753275058384,-257.125609,0.00023287,7]
[374327561,1753275058393,-673.230329,0.00023287,7]
[374327563,1753275058403,-257.125609,0.00023287,7]
[374327565,1753275058412,-460.0,0.00023287,2]
[374327567,1753275058421,-1376.606103,0.00023287,7]
[374327569,1753275058430,-1376.606103,0.00023287,7]
[374327571,1753275058439,-151.0,0.00023287,7]
[374327573,1753275058456,-1465.42,0.00023287,2]
[374327575,1753275058465,-1609.84,0.00023287,2]
[374327577,1753275058475,-151.0,0.00023287,7]
[374327579,1753275058484,-460.0,0.00023287,2]
[374327581,1753275058493,-460.0,0.00023287,2]
[374327583,1753275058502,-151.0,0.00023287,7]
[374327585,1753275058511,-151.0,0.00023287,7]
[374327587,1753275058521,-626.63,0.00023287,2]
[374327589,1753275058530,-151.0,0.00023287,7]
[374327601,1753275058635,-622.89,0.00023287,2]
[374327603,1753275058645,-2457.64,0.00023287,2]
[374327605,1753275058655,-151.0,0.00023287,7]
[374327607,1753275058664,-460.0,0.00023287,2]
[374327609,1753275058674,-460.0,0.00023287,2]
[374327611,1753275058684,-151.0,0.00023287,7]
[374327613,1753275058694,-1915.5,0.00023287,2]
[374327615,1753275058706,-2768.02,0.00023287,2]
[374327617,1753275058715,-479.5,0.00023287,2]
[374327619,1753275058725,-168.48543,0.00023287,7]
[374327621,1753275058735,-168.48543,0.00023287,7]
[374327623,1753275058744,-488.8,0.00023287,2]
[374327625,1753275058754,-602.87,0.00023287,2]
[374327627,1753275058764,-476.31,0.00023287,2]
[374327629,1753275058773,-284.673206,0.00023287,7]
[374327631,1753275058783,-3163.79,0.00023287,2]
[374327633,1753275058792,-284.673206,0.00023287,7]
[374327635,1753275058802,-993.41,0.00023287,2]
[374327637,1753275058812,-543.2,0.00023287,2]
[374327639,1753275058821,-460.0,0.00023287,2]
[374327641,1753275058831,-589.1,0.00023287,2]
[374327643,1753275058841,-3169.28,0.00023287,2]
[374327645,1753275058850,-1362.25,0.00023287,2]
[374327647,1753275058860,-3030.63,0.00023287,2]
[374327649,1753275058870,-478.79,0.00023287,2]
[374327652,1753275058879,-756.18,0.00023287,2]
[374327653,1753275058889,-481.84,0.00023287,2]
[374327655,1753275058898,-2142.42,0.00023287,2]
[374327658,1753275058908,-461.16,0.00023287,2]
[374327659,1753275058917,-682.0,0.00023288,2]
[374327662,1753275058927,-434.0,0.00023288,2]
[374327664,1753275058937,-3683.24,0.000233,7]
[374327665,1753275058946,-760.0,0.00023306,2]
[374327667,1753275058956,-1022.15,0.00023324,4]
[374327670,1753275058966,-1753.0,0.0002336,3]
[374327671,1753275058975,-1753.0,0.0002336,3]
[374327674,1753275058985,-1753.0,0.0002336,3]
[374327676,1753275058994,-1753.0,0.0002336,3]
[374327678,1753275059003,-1753.0,0.0002336,3]
[374327679,1753275059012,-1753.0,0.0002336,3]
[374327681,1753275059022,-1753.0,0.0002336,3]
[374327683,1753275059032,-1753.0,0.0002336,3]
[374327685,1753275059041,-1753.0,0.0002336,3]
[374327687,1753275059051,-1753.0,0.0002336,3]
[374327690,1753275059061,-1753.0,0.0002336,3]
[374327691,1753275059071,-1753.0,0.0002336,3]
[374327692,1753275059081,-1753.0,0.0002336,3]
[374327693,1753275059091,-1753.0,0.0002336,3]
[374327694,1753275059100,-1753.0,0.0002336,3]
[374327695,1753275059110,-1259.02796491,0.0002336,3]
[374327696,1753275059120,-160.0,0.0002336,3]
[374327697,1753275059131,-160.0,0.0002336,3]
[374327698,1753275059141,-172.0,0.0002336,3]
[374327699,1753275059150,-174.72074456,0.0002336,3]
[374327700,1753275059161,-160.0,0.0002336,3]
[374327701,1753275059170,-160.0,0.0002336,3]
[374327702,1753275059179,-152.0,0.0002336,3]
[374327703,1753275059189,-152.0,0.0002336,3]
[374327704,1753275059199,-160.0,0.0002336,3]
[374327705,1753275059211,-152.0,0.0002336,3]
[374327707,1753275059220,-152.0,0.0002336,3]
[374327709,1753275059229,-161.09065568,0.0002336,3]
[374327711,1753275059239,-152.0,0.0002336,3]
[374327713,1753275059251,-152.0,0.0002336,3]
[374327715,1753275059260,-152.0,0.0002336,3]
[374327717,1753275059269,-152.0,0.0002336,3]
[374327719,1753275059279,-152.0,0.0002336,3]
[374327721,1753275059288,-324.0,0.0002336,3]
[374327723,1753275059297,-152.0,0.0002336,3]
[374327725,1753275059307,-324.0,0.0002336,3]
[374327727,1753275059316,-152.0,0.0002336,3]
[374327729,1753275059325,-324.0,0.0002336,3]
[374327731,1753275059335,-152.0,0.0002336,3]
[374327733,1753275059344,-324.0,0.0002336,3]
[374327735,1753275059354,-324.0,0.0002336,3]
[374327737,1753275059363,-324.0,0.0002336,3]
[374327739,1753275059372,-334.18730074,0.0002336,3]